Cogmind - Beta 16 @@@ ROGUE MODE // 2025.12.04 @ 14:19:54 Player: C0-2MO Result: Destroyed by Y-45 Defender with Beam Rifle Performance ------------- Evolutions (2) 1000 Regions Visited (4) 800 Robots Destroyed (0) 0 Value Destroyed (10) 10 Prototype IDs (3) 60 Alien Tech Used (0) 0 Bonus (470) 470 TOTAL SCORE: 2340 Bonus ------- Pacifist 470 Cogmind --------- Core Integrity 0/550 Matter 290/300 Energy 85/100 System Corruption 0% Temperature Cool (9) Movement Flying (40) Location -8/Materials Parts ------- > --- POWER (2) -------- (None) > --- PROPULSION (5) --- Flight Unit > --- UTILITY (2) ------ (None) > --- WEAPON (2) ------- (None) > --- INVENTORY (5) ---- Backup Power I Light Nuclear Core Cesium-ion Thruster Peak State ------------ > --- POWER ------------ Backup Power I > --- PROPULSION ------- Backup Propulsion I Backup Propulsion I > --- UTILITY ---------- Backup Plating I Backup Plating I > --- WEAPON ----------- Backup Laser I Backup Laser I > --- INVENTORY -------- Backup Power I [Rating: 7] Favorites ----------- Power Backup Power I Engine Backup Power I Propulsion Backup Propulsion I Hover Unit Backup Propulsion I Flight Unit Flight Unit Utility Backup Plating I Protection Backup Plating I Weapon Backup Laser I Energy Gun Backup Laser I Build | -11 -10 -9 -9 -8 ------- Run | Yrd Mat Mat Min Mat Slots Evolved 4 | . . 2 . 2 Power 1 | . . . . 1 Propulsion 3 | . . 2 . 1 Utility . | . . . . . Weapon . | . . . . . Parts Attached 5 | . . . . 5 Power . | . . . . . Engine . | . . . . . Core . | . . . . . Reactor . | . . . . . Propulsion 5 | . . . . 5 Treads . | . . . . . Leg . | . . . . . Wheel . | . . . . . Hover 1 | . . . . 1 Flight 4 | . . . . 4 Utility . | . . . . . Device . | . . . . . Storage . | . . . . . Processor . | . . . . . Hackware . | . . . . . Protection . | . . . . . Artifact . | . . . . . Weapon . | . . . . . Energy Gun . | . . . . . Energy Cannon . | . . . . . Ballistic Gun . | . . . . . Ballistic Cannon . | . . . . . Launcher . | . . . . . Special Weapon . | . . . . . Impact Weapon . | . . . . . Slashing Weapon . | . . . . . Piercing Weapon . | . . . . . Special Melee Weapon . | . . . . . Unidentified Prototypes 1 | . . . . 1 Parts Lost 14 | . . 3 2 9 Power 2 | . . 1 . 1 Propulsion 8 | . . 1 1 6 Utility 4 | . . 1 1 2 Weapon . | . . . . . Highest Loss Streak 9 | . . 3 4 9 To Critical Strikes . | . . . . . Average Backups 1 | . . . . 2 Power . | . . . . 1 Propulsion . | . . . . . Utility . | . . . . . Weapon . | . . . . . Tool/Special . | . . . . . Unused Backups 2 | . . . . 2 Power 1 | . . . . 1 Propulsion 1 | . . . . 1 Utility . | . . . . . Weapon . | . . . . . Tool/Special . | . . . . . Average Slot Usage (%) 18 | . . 19 12 23 Engine 1 | . . 2 . 2 Hover 7 | . . 8 2 9 Flight 2 | . . . . 4 Protection 7 | . . 8 9 6 Peak Build Rating 7 | . . 5 2 7 Average Rating 2 | . . 2 . 3 On Entrance . | . . . 2 . Avg Prop Armor Cover (%) 13 | . . 10 10 15 Naked Turns 71 | . 17 16 12 26 Heaviest Build 3 | . . 3 1 3 Greatest Support 8 | 3 3 3 3 8 Greatest Overweight (x) . | . . . . . Average Overweight (x) . | . . . . . Largest Inventory Capacity 5 | 5 5 5 5 5 Average Capacity 5 | 5 5 5 5 5 Most Carried 3 | . . . . 3 Average Carried 1 | . . . . 2 Final Capacity 5 | 5 5 5 5 5 Final Carried 3 | . . . . 3 Class Distribution -------------------- 100% | Mutant Dominant Class ---------------- Mutant | -10/Materials Mutant | -9/Materials Mutant | -9/Mines Mutant | -8/Materials Resources | -11 -10 -9 -9 -8 ----------- Run | Yrd Mat Mat Min Mat Matter Collected 201 | 172 . . 4 25 Remotely . | . . . . . Salvage Created . | . . . . . Parts . | . . . . . Haulers Intercepted . | . . . . . Recyclers Shooed . | . . . . . Parts Field Recycled . | . . . . . Retrieved Matter . | . . . . . Parts Self-Destructed . | . . . . . Prevented . | . . . . . Parts Restored . | . . . . . Kills | -11 -10 -9 -9 -8 ------- Run | Yrd Mat Mat Min Mat Combat Hostiles Destroyed . | . . . . . Classes Destroyed . | . . . . . Best Kill Streak . | . . . . . Combat Bots Only . | . . . . . Max Kills in Single Turn . | . . . . . Gunslinging . | . . . . . Exploded . | . . . . . Melee . | . . . . . Uniques/NPCs Destroyed . | . . . . . Combat | -11 -10 -9 -9 -8 -------- Run | Yrd Mat Mat Min Mat Hostile Shots Fired 218 | . . 33 28 157 Missed 96 | . . 16 12 68 Hits 122 | . . 17 16 89 Melee 1 | . . 1 . . Projectile 121 | . . 16 16 89 AOE 7 | . . . 7 . Critical Strikes 2 | . . 1 . 1 Damage Taken 1482 | . . 183 360 939 Core 886 | . . 44 292 550 Absorbed by Shields . | . . . . . Core Remaining (%) 72 | 100 100 . 16 . Volleys Fired . | . . . . . Largest . | . . . . . Hottest . | . . . . . Shots Fired . | . . . . . Gun . | . . . . . Cannon . | . . . . . Launcher . | . . . . . Special . | . . . . . Kinetic . | . . . . . Thermal . | . . . . . Explosive . | . . . . . Electromagnetic . | . . . . . Robot Hit Streak . | . . . . . Robot Miss Streak . | . . . . . Penetration Max . | . . . . . Secondary Targets . | . . . . . Shots Hit Robots . | . . . . . Core Hits 3 | . . . . 3 Critical Kills . | . . . . . Critical Parts Destroyed . | . . . . . Critical Strikes . | . . . . . Melee Attacks . | . . . . . Impact . | . . . . . Slashing . | . . . . . Piercing . | . . . . . Sneak Attacks . | . . . . . Combat Hostiles . | . . . . . Follow-up Attacks . | . . . . . Damage Inflicted 9 | . . 1 . 8 Guns . | . . . . . Cannons . | . . . . . Explosions . | . . . . . Melee . | . . . . . Ramming 9 | . . 1 . 8 Kinetic . | . . . . . Thermal . | . . . . . Explosive . | . . . . . Electromagnetic . | . . . . . Impact . | . . . . . Slashing . | . . . . . Piercing . | . . . . . Highest Corruption 1 | . . 1 1 . Average Corruption 1 | . . 1 1 . Corruption Purged . | . . . . . Corruption Blocked . | . . . . . Overload Shots . | . . . . . Overflow Damage . | . . . . . Projectiles . | . . . . . Explosions . | . . . . . Melee . | . . . . . Knockbacks . | . . . . . Impact . | . . . . . Kinetic . | . . . . . Secondary . | . . . . . Self-Inflicted Damage 2 | . . . . 2 Shots . | . . . . . Rammed 7 | . . 1 1 5 Targets Rammed 7 | . . 1 1 5 Kicked . | . . . . . Crushed . | . . . . . Highest Temperature 9 | . . . . 9 Average Temperature 9 | . . . . 9 Received Heat Transfer 276 | . . 42 . 234 Siege Activations . | . . . . . Martial Activations . | . . . . . Shielding Activations . | . . . . . Robots Disrupted . | . . . . . Combat Hostiles . | . . . . . Robots Corrupted . | . . . . . Combat Hostiles . | . . . . . Parts Fried . | . . . . . Impact Corruptions . | . . . . . Robots Melted . | . . . . . Combat Hostiles . | . . . . . Parts Melted . | . . . . . Heat Transferred . | . . . . . Parts Sabotaged . | . . . . . Parts Stolen . | . . . . . Parts Stripped . | . . . . . Power Chain Reactions . | . . . . . Alert | -11 -10 -9 -9 -8 ------- Run | Yrd Mat Mat Min Mat Maximum Alert Level . | . . . . . Low Security (%) 100 | 100 100 100 100 100 Level 1 . | . . . . . Level 2 . | . . . . . Level 3 . | . . . . . Level 4 . | . . . . . Level 5 . | . . . . . High Security . | . . . . . Max Security . | . . . . . Peak Influence 112 | . 14 5 15 112 Initial 5 | . . 5 . 5 Average 33 | . 11 2 1 59 Influence Increases 301 | . 14 . 30 257 Destroy 0b10 Robot/C 60 | . . . . 60 Successful Hack 46 | . 14 . . 32 Select Force Hacks 30 | . . . . 30 Disable Machine 15 | . . . . 15 Lose Combat Pursuer 150 | . . . 30 120 Influence Decreases 219 | . . 14 15 190 Entered New Map 19 | . . 9 . 10 Time Decay 80 | . . 5 5 70 Lost Part 100 | . . . 10 90 Lost Ally 20 | . . . . 20 Squads Dispatched 7 | . . 1 . 6 Investigation 4 | . . . . 4 Extermination . | . . . . . Reinforcement 3 | . . 1 . 2 Assault . | . . . . . Garrison . | . . . . . Intercept . | . . . . . Searches Triggered . | . . . . . Construction Impeded . | . . . . . Haulers Reinforced . | . . . . . Active Scanning Responses . | . . . . . Cargo Convoy Interrupts . | . . . . . Stealth | -11 -10 -9 -9 -8 --------- Run | Yrd Mat Mat Min Mat Distress Signals 3 | . . 1 . 2 Communications Jammed . | . . . . . Distress Signals . | . . . . . Times Spotted 68 | . . 12 21 35 Peak Tracking Total 25 | . . 12 19 25 Tactical Retreats 6 | . . . 3 3 Traps | -11 -10 -9 -9 -8 ------- Run | Yrd Mat Mat Min Mat Traps Triggered 2 | . . 2 . . Indirectly . | . . . . . Trap Hack Attempts . | . . . . . Triggered . | . . . . . Disarmed . | . . . . . Reprogrammed . | . . . . . Reused . | . . . . . Traps Extracted . | . . . . . Installed . | . . . . . Triggered . | . . . . . Machines | -11 -10 -9 -9 -8 ---------- Run | Yrd Mat Mat Min Mat Machines Disabled 1 | . . . . 1 Max in Single Turn . | . . . . . Machines Repaired . | . . . . . Machines Dismantled . | . . . . . Machines Sabotaged . | . . . . . Overloaded Fab Kills . | . . . . . Hacking | -11 -10 -9 -9 -8 --------- Run | Yrd Mat Mat Min Mat Machines Accessed 8 | . 1 1 . 6 Terminals 5 | . 1 . . 4 Fabricators . | . . . . . Repair Stations 2 | . . 1 . 1 Recycling Units . | . . . . . Scanalyzers 1 | . . . . 1 Garrison Access . | . . . . . Total Hacks 22 | . 2 1 . 19 Successful 15 | . 2 1 . 12 Failed 7 | . . . . 7 Catastrophic 1 | . . . . 1 Database Lockouts . | . . . . . Manual 13 | . 2 . . 11 Terminals 16 | . 2 . . 14 Fabricators . | . . . . . Repair Stations 2 | . . 1 . 1 Recycling Units . | . . . . . Scanalyzers 4 | . . . . 4 Garrison Access . | . . . . . Terminal Hacks 6 | . 1 . . 5 Prototype ID Bank 1 | . . . . 1 Level Access Points 1 | . 1 . . . Branch Access Points 1 | . . . . 1 Zone Layout 3 | . . . . 3 Fabricator Hacks . | . . . . . Repair Station Hacks 2 | . . 1 . 1 Refit 2 | . . 1 . 1 Recycling Unit Hacks . | . . . . . Scanalyzer 2 | . . . . 2 Retrieve Study 2 | . . . . 2 Garrison Access Hacks . | . . . . . Unauthorized Hacks 5 | . 1 . . 4 Terminals 4 | . 1 . . 3 Botnet 3 | . 1 . . 2 Disrupt 1 | . . . . 1 Fabricators . | . . . . . Repair Stations . | . . . . . Recycling Units . | . . . . . Scanalyzers 1 | . . . . 1 Extract 1 | . . . . 1 Garrison Access . | . . . . . Data Cores Recovered . | . . . . . Used . | . . . . . Hacking Detections 4 | . . . . 4 Full Trace Events 3 | . . . . 3 Feedback Events . | . . . . . Feedback Blocked . | . . . . . Robot Schematics Acquired . | . . . . . Robots Built . | . . . . . Authchips . | . . . . . Time . | . . . . . Total Robot Build Rating . | . . . . . Part Schematics Acquired 1 | . . . . 1 Parts Built . | . . . . . Authchips . | . . . . . Time . | . . . . . Total Part Build Rating . | . . . . . Part Studies Acquired 2 | . . . . 2 Parts Repaired . | . . . . . Time . | . . . . . Parts Recycled . | . . . . . Recycled Matter . | . . . . . Retrieved Matter . | . . . . . Retrieved Components . | . . . . . Parts Scanalyzed . | . . . . . Part Schematics Acquired . | . . . . . Parts Damaged . | . . . . . Bothacking | -11 -10 -9 -9 -8 ------------ Run | Yrd Mat Mat Min Mat Used RIF Installer . | . . . . . Robots Hacked . | . . . . . Non-combat . | . . . . . Combat . | . . . . . Robot Hacks Applied . | . . . . . Relay Couplers Released . | . . . . . Fabnet Peak Effective % . | . . . . . Robots Rewired . | . . . . . Allies Hacked . | . . . . . Hacks Repelled . | . . . . . Allies | -11 -10 -9 -9 -8 -------- Run | Yrd Mat Mat Min Mat Total Allies 2 | . . . 2 . Largest Group 2 | . . . 2 1 Highest-Rated Group 39 | . . . 39 31 Highest-Rated Ally 31 | . . . 31 31 Total Orders . | . . . . . Ally Attacks 8 | . . . . 8 Total Damage 84 | . . . . 84 Kills 3 | . . . . 3 Allies Corrupted . | . . . . . Allies Melted . | . . . . . Intel | -11 -10 -9 -9 -8 ------- Run | Yrd Mat Mat Min Mat Active Infowar (turns) . | . . . . . Robot Analysis Total . | . . . . . Derelict Logs Recovered . | . . . . . Drone Launches . | . . . . . Drone Recoveries . | . . . . . Exploration | -11 -10 -9 -9 -8 ------------- Run | Yrd Mat Mat Min Mat Turns Passed 289 | 10 17 39 65 158 Spaces Moved 566 | 21 34 73 128 310 Core 427 | 21 34 73 128 171 Treads . | . . . . . Legs . | . . . . . Wheels . | . . . . . Hover . | . . . . . Flight 139 | . . . . 139 Fastest Speed 37 | 50 50 50 50 37 Average Speed 47 | 50 50 50 50 45 Slowest Speed 50 | 50 50 50 50 50 Overloaded Moves . | . . . . . Propulsion Burnouts . | . . . . . Robots Hopped 19 | . . . . 19 Potential Cave-ins . | . . . . . Cave-ins Triggered . | . . . . . Exploration Rate (%) 23 | 2 17 17 37 45 Regions Visited 4 Branch Regions 1 Pre-discovered Areas . | . . . . . Known Exits Taken 1 | . 1 . . . Unknown Exits Taken 3 | 1 . 1 1 . Scrap Searched . | . . . . . Spaces Dug . | . . . . . Terrain Destroyed . | . . . . . Melee . | . . . . . Projectile . | . . . . . AOE . | . . . . . Terrain Rammed . | . . . . . Walls Destroyed . | . . . . . Machines Disabled . | . . . . . Actions | -11 -10 -9 -9 -8 --------- Run | Yrd Mat Mat Min Mat Total 563 | 20 33 75 128 307 Wait 1 | . . . . 1 Move 527 | 20 33 72 127 275 Hop 16 | . . . . 16 Pick Up 2 | . . . . 2 Fast Attach 5 | . . . . 5 Attach . | . . . . . Detach 1 | . . . . 1 Swap . | . . . . . Drop 4 | . . 2 . 2 Fire . | . . . . . Melee . | . . . . . Ram 7 | . . 1 1 5 Kick . | . . . . . Crush . | . . . . . Escape Stasis . | . . . . . Rewire . | . . . . . Trap . | . . . . . Miscellaneous . | . . . . . Route ------- -11/Scrapyard -10/Materials (discovered 3 exits: *Mat x3) -9/Materials -9/Mines -8/Materials History --------- Turn | Location | Event 2 | -11/Scrapyard | Discovered new exit (range 16) 11 | -11/Scrapyard | Entered Materials 14 | -10/Materials | Identified exit to Materials 28 | -10/Materials | Entered another Materials area 28 | -9/Materials | Evolved 2 slots: Propulsion x2 63 | -9/Materials | Discovered new exit (range 6) 67 | -9/Materials | Entered Mines 68 | -9/Mines | Assembled infested the area 73 | -9/Mines | Assisted by a Guerilla fighting off Assembled 78 | -9/Mines | Met a Derelict bent on vengeance 105 | -9/Mines | Lost 4 parts (1p2n1u) 121 | -9/Mines | Core integrity fell below 50% 124 | -9/Mines | Core integrity fell below 20% 127 | -9/Mines | Discovered new exit (range 10) 132 | -9/Mines | Entered Materials 132 | -8/Materials | Accompanied by 1 ally 132 | -8/Materials | Evolved 2 slots: Power x1, Propulsion x1 137 | -8/Materials | Led the pair of lost Derelicts to an unsafe place 256 | -8/Materials | Core integrity fell below 50% 284 | -8/Materials | Core integrity fell below 20% 290 | -8/Materials | Destroyed by Y-45 Defender with Beam Rifle Last Messages --------------- 00260_ R-06 Scavenger collects Welding Torch. 00262_ Aerolev Unit destroyed. 00265_ K-01 Serf collects debris. 00270_ W-25 Informer sends out distress signal. 00272_ Connecting with Terminal... >>Layout(Zone) Retrieving Zone 4A layout... Downloaded map data. >>Access(Branch) No branch access points found. >>Prototypes Downloading prototype IDs... Hvy. EM Shotgun Imp. Flight Unit 00272_ ALERT: Suspicious activity at Terminal M002. Dispatching Investigation squad. 00280_ Flight Unit destroyed. 00284_ S-10 Pest destroyed. 00287_ Slammed into S-10 Pest. 00289_ Acquired Flight Unit. Map ----- +----------------------------------------------------+ | | | | | | | | | | | | | | | ????????????#####????????????????????????????????? | | ???????????? #????????????????????????????????? | | ???????????? #??????##################????????? | | ???????????? #??????# ? #????????? | | ???????????? #??????# """ # #????????? | | ???????????? #??????# "G" # """ ####?????? | | ????????????""" #??????# " " # """ # #?????? | | ????????????""" #??????# # """ # #?????? | | ????????????""" #??????# """ # + +?????? | | ????????###+#####??????# """ ######## #?????? | | ????##### #????????# """ #?????## ##????? | | ????? ##################g####### #????? | | ? ! #????? | | ? ########### #????? | | ?######## #?????????# T ### ?????? | | ????????## ############ Y ####+######?? | | ?????????# # ## #= !#?? | | ?????????# # ! ##% # #?? | | ########## bg Ygg g gg @s + """"""" #?? | | # ##s############ """"""" #?? | | # !!! # s #????# """"""" #?? | | # !!! # """#????# """"""" #?? | | # !!! # """#????# """""???#?? | | " """ """ # # """#????# ??????? | | " """ """ ########### #????######??????? | | " """ """ #???????### """#????????????????? | | ######### # ] """#????????????????? | | ## T # """#????????????????? | | " """ """ ## """ # #????????????????? | | " """ """ ## """ ##########????????????????? | | " """ """ # """ #?????????????????????????? | | / #?????????????????????????? | | # """ #??######?????????????????? | | # """ #??# ?????????????????? | | ########### # """ #??# ?????????????????? | | ? #??????# # #??# ?????????????????? | | ?" #??????# ###########?# """ ?????????????????? | | ?" #??????# # #?#"""""?????????????????? | | ?" #??????# # #?#"""""?????????????????? | | ? #??????# # #?#"""""?????????????????? | | ? #??????# # #?# """ ?????????????????? | | ?########## ######+####?# ?????????????????? | | ? # *%#### ########+?????????????????? | +----------------------------------------------------+ Best States ------------- Heat Dissipation 31 Energy Generation 9 Energy Capacity 100 Matter Stores 300 Matter Capacity 300 Sight Range 16 Terrain Scan Density 10 Armor Coverage 160 Evasion (%) 62 Item Schematics ----------------- VTOL Module | -8/Materials | Extracted Robot Schematics ------------------ None Fabricated ------------ Nothing Repaired ---------- Nothing Studied --------- Cesium-ion Thruster | -8/Materials | Hacked Lgt. Nuclear Core | -8/Materials | Hacked Alien Tech Used ----------------- None Achievements -------------- None Challenges ------------ None Game ------ Seed TrapTerrabombLaser Manual? 0 Play Time 00:11:15 Cumulative 740.7 hours Start 2025.12.04 @ 14:12:21 End 2025.12.04 @ 14:19:54 Sessions 1 Manual Loads 0 Difficulty Rogue Special Mode None Game No. 314 Rogue 314 Adventurer 0 Explorer 0 Win Type - Total 77 Types 39/5/13/6/6/1/1/3/0/3 Lore% 97 Gallery% 90 Achievement% 82 Wizard Run 0 Options --------- Layout 1 ASCII 0 Keyboard 0 Movement Numpad Keybinds 0 Fullscreen 1 Font 24/Smallcaps Map View 50x35 Zoom Use 0% Tactical HUD 1 Map Filters NONE Filters NONE Steam 1 RUN: 1521dbbb-b901-4fff-bd5b-ed7e846ee0a5